bitfinex-derivatives/quotes_SOLF0:USTF0_20241229
["timestamp","ask_amount","ask_price","bid_price","bid_amount"]
[1735464271293,2.5639,195.34,195.32,4.03124801]
[1735464271599,2.5639,195.34,195.33,4.03124801]
[1735464271995,2.5639,195.34,195.33,4.03153943]
[1735464275198,2.5639,195.34,195.31,2.5642]
[1735464275405,2.5639,195.34,195.32,4.03185154]
[1735464275603,2.5637,195.36,195.33,6.59575154]
[1735464275799,2.5637,195.36,195.34,4.03185154]
[1735464276003,2.5637,195.36,195.35,4.03185154]
[1735464276405,2.5637,195.36,195.33,2.5639]
[1735464276597,2.5637,195.36,195.34,4.03165375]
[1735464276793,2.5637,195.36,195.35,4.03165375]
[1735464281513,2.5637,195.36,195.33,2.5639]
[1735464281710,2.5637,195.36,195.34,4.03109261]
[1735464281910,2.5637,195.36,195.33,2.5639]
[1735464282208,2.5637,195.36,195.34,4.03100532]
[1735464282508,2.5637,195.36,195.33,2.5639]
[1735464282713,2.5637,195.36,195.34,4.03102479]
[1735464282914,2.5637,195.36,195.33,2.5639]
[1735464283207,2.5637,195.36,195.34,4.03103441]
[1735464283411,8.02488658,195.38,195.3,28.48825965]
[1735464283610,2.5638,195.35,195.31,14.62017825]
[1735464283810,2.5638,195.35,195.32,4.03109167]
[1735464284013,2.5638,195.35,195.33,4.03109167]
[1735464284215,2.5638,195.35,195.34,4.03109167]
[1735464285315,2.5638,195.35,195.31,39.07734623]
[1735464285714,2.5638,195.35,195.32,4.03133612]
[1735464285917,2.5638,195.35,195.33,4.03133612]
[1735464286115,2.5638,195.35,195.31,39.07734623]
[1735464286314,2.5638,195.35,195.32,4.03133612]
[1735464286514,2.5638,195.34,195.33,4.03133612]
[1735464291122,2.5637,195.35,195.33,4.03133612]
[1735464291418,2.5637,195.35,195.34,4.03133612]
[1735464292219,2.5637,195.35,195.32,2.5641]
[1735464292416,2.5637,195.35,195.33,4.03205524]
[1735464292611,2.5637,195.35,195.34,4.03205524]
[1735464294820,2.5637,195.35,195.32,2.5641]
[1735464295017,2.5637,195.35,195.33,4.03235509]
[1735464295213,2.5637,195.35,195.34,4.03235509]
[1735464296825,2.5636,195.36,195.34,4.03235509]
[1735464297017,2.5636,195.36,195.32,2.5641]
[1735464297215,2.5636,195.36,195.33,4.03280138]
[1735464297421,2.5636,195.36,195.34,4.03280138]
[1735464297721,2.5636,195.36,195.32,2.5641]
[1735464298128,2.5636,195.36,195.33,4.03297593]
[1735464298421,2.5636,195.36,195.34,4.03297593]
[1735464298626,2.5636,195.36,195.32,2.5641]
[1735464298926,2.5636,195.36,195.33,6.59691077]
[1735464299226,2.5636,195.36,195.34,4.03301077]
[1735464299431,2.5636,195.36,195.33,2.5639]
[1735464299624,2.5636,195.36,195.34,4.03297192]
[1735464299823,2.5636,195.36,195.33,2.5639]
[1735464300125,2.5636,195.36,195.34,4.03295694]
[1735464300325,2.5636,195.36,195.33,2.5639]
[1735464300526,2.5636,195.36,195.34,4.03295694]
[1735464300727,2.5636,195.36,195.33,2.5639]
[1735464300930,2.5636,195.36,195.34,4.0329264]
[1735464301131,2.5636,195.36,195.33,2.5639]
[1735464301534,2.5636,195.36,195.34,4.03271101]
[1735464301832,2.5636,195.36,195.33,2.5639]
[1735464302034,2.5636,195.36,195.34,4.03295369]
[1735464302233,2.5636,195.36,195.33,2.5639]
[1735464302426,2.5636,195.36,195.34,4.03294685]
[1735464302623,2.5636,195.36,195.33,2.5639]
[1735464302826,2.5636,195.36,195.34,4.03293954]
[1735464303025,2.5636,195.36,195.33,2.5639]
[1735464303329,2.5636,195.36,195.34,4.03293954]
[1735464303530,2.5636,195.36,195.33,2.5639]
[1735464303833,2.5636,195.36,195.34,4.032914]
[1735464304130,2.5636,195.36,195.33,2.5639]
[1735464304433,2.5636,195.36,195.34,4.032914]
[1735464304736,2.5636,195.36,195.33,2.5639]
[1735464305034,2.5636,195.36,195.34,4.0327833]
[1735464305233,2.5636,195.36,195.33,2.5639]
[1735464305426,2.5636,195.36,195.34,4.03278854]
[1735464305629,2.5636,195.36,195.33,2.5639]
[1735464305826,2.5636,195.36,195.34,4.03275871]
[1735464306028,2.5636,195.36,195.33,2.5639]
[1735464306229,2.5636,195.36,195.34,4.03274241]
[1735464306429,2.5636,195.36,195.33,2.5639]
[1735464306625,2.5636,195.36,195.34,4.03294846]
[1735464306829,2.5636,195.36,195.33,2.5639]
[1735464307034,2.5636,195.36,195.34,4.03295214]
[1735464307237,2.5636,195.36,195.33,2.5639]
[1735464307434,2.5636,195.36,195.34,4.03278767]
[1735464307627,2.5636,195.36,195.33,2.5639]
[1735464307832,2.5636,195.36,195.34,4.03270217]
[1735464308031,2.5636,195.36,195.33,2.5639]
[1735464308235,2.5636,195.36,195.34,4.03266415]
[1735464308435,2.5636,195.36,195.33,2.5639]
[1735464308637,2.5637,195.35,195.32,9.66726122]
[1735464308936,2.5637,195.35,195.33,4.033244]
[1735464309137,2.5636,195.36,195.33,2.5639]
[1735464310841,2.5636,195.36,195.34,4.03303335]
[1735464311040,2.5636,195.36,195.33,2.5639]
[1735464311242,35.66848035,195.42,195.34,4.03300389]
[1735464311442,35.66848035,195.42,195.35,4.03252954]
[1735464311740,35.66848035,195.42,195.33,8.02488658]
[1735464311935,35.66848035,195.42,195.34,4.03239987]
[1735464312137,35.66848035,195.42,195.33,8.02488658]
[1735464312341,43.69336693,195.42,195.34,4.03284722]
[1735464312535,43.69336693,195.42,195.37,2.5634]
[1735464313546,2.5631,195.4,195.37,2.5634]
[1735464315144,2.5631,195.4,195.33,8.02488658]
[1735464315340,2.5631,195.4,195.35,2.5637]
[1735464315642,43.69336693,195.42,195.35,2.5637]
[1735464315843,2.5632,195.39,195.35,2.5637]
[1735464319150,2.5632,195.39,195.36,4.03251474]
[1735464319352,2.5632,195.39,195.35,2.5637]
[1735464325354,2.5633,195.38,195.34,2.5638]
[1735464325556,2.5633,195.38,195.35,4.03184628]
[1735464325856,2.5633,195.38,195.34,2.5638]
[1735464326056,2.5633,195.38,195.35,4.03184681]
[1735464326255,2.5633,195.38,195.34,2.5638]
[1735464326457,2.5633,195.38,195.35,4.03175504]
[1735464326758,2.5633,195.38,195.34,2.5638]
[1735464326954,2.5633,195.38,195.35,4.03175318]
[1735464327155,2.5633,195.38,195.34,2.5638]
[1735464327349,2.5633,195.38,195.35,4.03176816]
[1735464327549,2.5634,195.37,195.34,2.5638]
[1735464327756,2.5634,195.37,195.35,4.03164954]
[1735464327957,2.5634,195.37,195.33,17.6920478]
[1735464328158,2.5634,195.37,195.34,4.03165047]
[1735464328360,2.5634,195.37,195.33,17.6920478]
[1735464328558,2.5634,195.37,195.34,4.03158304]
[1735464328754,2.5634,195.37,195.35,4.03158304]
[1735464328949,2.5634,195.37,195.33,17.6920478]
[1735464329153,2.5634,195.37,195.34,4.03158304]
[1735464329360,2.5634,195.37,195.35,4.03158304]
[1735464329658,2.5634,195.37,195.33,17.6920478]
[1735464329858,2.5634,195.37,195.34,4.03154115]
[1735464330059,2.5634,195.37,195.35,4.03154115]
[1735464330359,2.5634,195.37,195.33,17.6920478]
[1735464330760,2.5634,195.37,195.34,4.03151331]
[1735464330962,2.5634,195.37,195.35,4.03151331]
[1735464331157,2.5634,195.37,195.33,17.6920478]
[1735464331356,2.5634,195.37,195.34,4.0315153]
[1735464331555,2.5634,195.37,195.35,4.0315153]
[1735464331761,2.5634,195.37,195.33,17.6920478]
[1735464332060,2.5634,195.37,195.34,4.03150701]
[1735464332260,2.5634,195.37,195.35,4.03150701]
[1735464332459,2.5634,195.37,195.33,17.6920478]
[1735464332760,2.5634,195.37,195.34,4.03147549]
[1735464333057,2.5634,195.37,195.35,4.03147549]
[1735464333260,2.5634,195.37,195.33,17.6920478]
[1735464333468,2.5634,195.37,195.34,4.03150041]
[1735464333756,2.5634,195.37,195.35,4.03151539]
[1735464333953,2.5634,195.37,195.33,17.6920478]
[1735464334152,2.5634,195.37,195.34,4.03151539]
[1735464334352,2.5634,195.37,195.35,4.03151539]
[1735464334553,2.5634,195.37,195.33,17.6920478]
[1735464334756,2.5634,195.37,195.34,4.03152778]
[1735464334958,2.5634,195.37,195.35,4.03152778]
[1735464335161,2.5634,195.37,195.33,17.6920478]
[1735464335357,2.5634,195.37,195.34,4.03152778]
[1735464335560,2.5634,195.37,195.33,17.6920478]
[1735464335861,2.5634,195.37,195.34,4.03166177]
[1735464336063,2.5634,195.37,195.33,17.6920478]
[1735464336264,2.5634,195.37,195.34,4.03166177]
[1735464336563,2.5634,195.37,195.33,17.6920478]
[1735464336763,2.5634,195.37,195.34,4.03170634]
[1735464336964,2.5634,195.37,195.33,10.58878658]
[1735464337163,2.5634,195.37,195.34,4.03170634]
[1735464337364,2.5634,195.37,195.33,10.58878658]
[1735464337663,2.5634,195.37,195.34,4.03175925]
[1735464337864,2.5634,195.37,195.34,2.5638]
[1735464341371,2.5633,195.38,195.34,2.5638]
[1735464342165,10.86488658,195.41,195.35,2.5636]
[1735464342368,2.5632,195.39,195.33,8.02488658]
[1735464342567,2.5632,195.39,195.34,4.03195612]
[1735464342771,2.5632,195.39,195.35,6.59555612]
[1735464342971,2.5632,195.39,195.35,2.5636]
[1735464343875,35.66848035,195.42,195.33,15.1281478]
[1735464344075,35.66848035,195.42,195.35,8.02488658]
[1735464344275,35.66848035,195.42,195.36,4.0319559]
[1735464344472,2.5629,195.41,195.37,2.5633]
[1735464346476,2.5629,195.41,195.38,2.5633]
[1735464355579,8.02488658,195.44,195.38,2.5633]
[1735464355780,8.02488658,195.44,195.39,2.5631]
[1735464357285,2.5628,195.43,195.39,2.5631]
[1735464358887,8.02488658,195.44,195.39,2.5631]
[1735464359088,2.5628,195.42,195.39,2.5631]
[1735464364586,3.84872438,195.47,195.39,2.5631]
[1735464364794,2.5627,195.43,195.39,2.5631]
[1735464365087,2.5627,195.43,195.4,2.563]
[1735464365287,3.84872438,195.47,195.38,8.02488658]
[1735464365589,9.03361096,195.47,195.42,2.5628]
[1735464366185,2.5623,195.46,195.43,2.5626]
[1735464367586,84.95834748,195.61,195.45,8.02488658]
[1735464367887,0.83245842,195.6,195.54,8.02488658]
[1735464368091,2.5607,195.58,195.54,8.02488658]
[1735464370788,2.5605,195.6,195.54,10.58598658]
[1735464371189,2.84,195.63,195.54,8.02488658]
[1735464371390,8.02488658,195.62,195.54,8.02488658]
[1735464372387,2.5604,195.6,195.55,2.5611]
[1735464373496,2.5602,195.62,195.56,8.02488658]
[1735464373696,2.5602,195.62,195.58,8.02488658]
[1735464373991,8.02488658,195.64,195.58,8.02488658]
[1735464374492,10.58478658,195.64,195.59,2.5605]
[1735464374688,2.5599,195.64,195.59,2.5605]
[1735464375295,2.5599,195.64,195.6,2.5604]
[1735464375887,2.5599,195.64,195.6,10.58528658]
[1735464376402,2.5599,195.64,195.6,8.02488658]
[1735464383106,2.5599,195.64,195.6,10.58528658]
[1735464383402,2.5599,195.64,195.6,8.02488658]
[1735464384398,2.5598,195.65,195.6,10.58528658]
[1735464384599,2.5598,195.65,195.62,8.02488658]
[1735464384994,84.62177096,195.67,195.62,8.02488658]
[1735464385199,2.5599,195.64,195.62,8.02488658]
[1735464389699,2.5599,195.64,195.61,8.02488658]
[1735464396508,2.5599,195.64,195.61,10.58518658]
[1735464398310,84.62177096,195.67,195.61,8.02488658]
[1735464398511,1.00788023,195.7,195.65,8.02488658]
[1735464398712,2.5594,195.68,195.65,10.58458658]
[1735464398910,1.00788023,195.7,195.65,10.58458658]
[1735464399309,2.5593,195.69,195.65,10.58458658]
[1735464399505,1.00788023,195.7,195.67,8.02488658]
[1735464399714,1.00788023,195.7,195.69,8.02488658]
[1735464399914,34.60645248,195.75,195.69,8.02488658]
[1735464400315,2.5587,195.74,195.69,8.02488658]
[1735464400918,37.16495248,195.75,195.7,2.5591]
[1735464401514,2.5583,195.77,195.71,2.5588]
[1735464401720,2.5583,195.77,195.73,8.02488658]
[1735464402223,2.5578,195.8,195.74,2.5585]
[1735464402418,2.5578,195.8,195.75,8.02488658]
[1735464402610,2.84,195.85,195.75,8.02488658]
[1735464402817,8.02488658,195.84,195.77,8.02488658]
[1735464403321,2.5575,195.83,195.77,10.58308658]
[1735464403520,8.02488658,195.8,195.71,1.4852]
[1735464403722,8.02488658,195.78,195.71,37.99834623]
[1735464404118,8.02488658,195.78,195.71,29.97345965]
[1735464404316,8.02488658,195.78,195.71,37.99834623]
[1735464404714,8.02488658,195.78,195.71,1.4852]
[1735464404917,2.5584,195.76,195.71,9.51008658]
[1735464405120,8.02488658,195.78,195.71,9.51008658]
[1735464405726,2.5585,195.75,195.71,9.51008658]
[1735464406122,2.5585,195.75,195.71,8.02488658]
[1735464407818,2.5585,195.75,195.73,8.02488658]
[1735464408829,2.84,195.81,195.73,8.02488658]
[1735464409030,8.02488658,195.82,195.75,8.02488658]
[1735464409324,2.84,195.82,195.75,8.02488658]
[1735464409722,2.5577,195.81,195.75,8.02488658]
[1735464409921,2.84,195.82,195.75,8.02488658]
[1735464410325,2.5579,195.8,195.75,10.58328658]
[1735464411830,2.5578,195.8,195.76,2.5583]
[1735464412025,2.5578,195.8,195.75,8.02488658]
[1735464413425,2.84,195.82,195.75,8.02488658]
[1735464413626,2.84,195.85,195.79,8.02488658]
[1735464414029,2.5574,195.84,195.79,10.58278658]
[1735464416229,2.5574,195.84,195.79,2.5579]
[1735464416430,8.02488658,195.86,195.79,2.5579]
[1735464416727,15.39,196.08,195.74,1.5569]
[1735464416728,15.39,196.06,195.82,2.5575]
[1735464416932,8.02488658,195.88,195.82,10.58238658]
[1735464418230,2.557,195.87,195.82,10.58238658]
[1735464418425,8.02488658,195.88,195.82,8.02488658]
[1735464418632,8.02488658,195.88,195.8,8.02488658]
[1735464419538,8.02488658,195.88,195.8,10.58268658]
[1735464419925,2.5573,195.84,195.8,8.02488658]
[1735464421636,2.5573,195.84,195.8,10.58258658]
[1735464422028,8.02488658,195.88,195.8,10.58258658]
[1735464422229,2.5572,195.85,195.8,10.58258658]
[1735464422835,2.5572,195.85,195.82,8.02488658]
[1735464423034,8.02488658,195.89,195.82,8.02488658]
[1735464423342,2.557,195.86,195.82,8.02488658]
[1735464423639,1.45088169,195.9,195.82,8.02488658]
[1735464423832,2.5568,195.88,195.83,2.5573]
[1735464424370,2.5568,195.88,195.84,10.58218658]
[1735464425350,2.5568,195.88,195.84,8.02488658]
[1735464426354,1.45088169,195.9,195.84,8.02488658]
[1735464426557,8.02488658,195.93,195.86,10.58188658]
[1735464427454,2.5564,195.91,195.87,2.5568]
[1735464428063,56.94377488,195.96,195.88,8.02488658]
[1735464428259,2.5561,195.93,195.88,10.58158658]
[1735464428751,2.5564,195.91,195.87,2.5569]
[1735464429050,8.02488658,195.95,195.87,8.02488658]
[1735464429253,2.5561,195.93,195.88,2.5567]
[1735464429449,54.10377488,195.96,195.88,2.5567]
[1735464429640,8.02488658,195.95,195.88,10.58158658]
[1735464430343,2.5562,195.92,195.88,10.58158658]
[1735464431238,54.10377488,195.96,195.88,8.02488658]
[1735464431438,2.5561,195.94,195.89,2.5565]
[1735464431841,2.5561,195.94,195.9,8.02488658]
[1735464432944,2.5561,195.94,195.92,8.02488658]
[1735464433343,2.5559,195.95,195.92,8.02488658]
[1735464433539,8.02488658,195.99,195.92,8.02488658]
[1735464434044,2.5559,195.95,195.9,2.5564]
[1735464434241,2.5559,195.95,195.92,8.02488658]
[1735464434545,2.5557,195.96,195.92,8.02488658]
[1735464436700,8.02488658,195.99,195.85,46.82164427]
[1735464436966,8.02488658,195.97,195.9,8.02488658]
[1735464438073,2.5562,195.92,195.9,8.02488658]
[1735464439662,8.02488658,195.97,195.9,8.02488658]
[1735464439861,2.5558,195.95,195.92,8.02488658]
[1735464440349,8.02488658,195.99,195.93,2.556]
[1735464440844,2.5555,195.98,195.93,2.556]
[1735464441047,8.02488658,195.99,195.92,8.02488658]
[1735464442844,2.5559,195.95,195.92,8.02488658]
[1735464443846,8.02488658,195.98,195.92,8.02488658]
[1735464444139,2.5561,195.93,195.92,8.02488658]
[1735464447855,2.84,196.01,195.92,8.02488658]
[1735464448449,2.84,196.01,195.88,2.84]
[1735464448657,8.02488658,195.99,195.93,8.02488658]
[1735464449355,2.5559,195.95,195.93,8.02488658]
[1735464450358,8.02488658,195.99,195.93,8.02488658]
[1735464450557,2.556,195.94,195.93,8.02488658]
[1735464453459,2.84,196.01,195.93,8.02488658]
[1735464453658,8.02488658,196.0,195.93,10.58088658]
[1735464455455,2.5557,195.97,195.93,10.58088658]
[1735464456265,2.5557,195.97,195.95,8.02488658]
[1735464456460,44.1830427,196.02,195.95,8.02488658]
[1735464456664,44.1830427,196.02,195.97,8.02488658]
[1735464457464,2.5553,196.0,195.97,8.02488658]
[1735464458960,2.5553,195.99,195.97,8.02488658]
[1735464460158,2.5553,195.99,195.96,2.5557]
[1735464460860,2.5553,195.99,195.95,8.02488658]
[1735464461061,2.5553,195.99,195.95,10.58068658]
[1735464461962,44.1830427,196.02,195.95,10.58068658]
[1735464462266,8.02488658,195.98,195.93,7.10326122]
[1735464462860,2.5561,195.93,195.92,28.48825965]
[1735464463967,2.5562,195.92,195.89,7.10326122]
[1735464464372,2.5562,195.92,195.9,8.02488658]
[1735464465969,2.5562,195.92,195.88,2.5567]
[1735464466167,2.5562,195.92,195.9,8.02488658]
[1735464467671,52.20792928,196.02,195.9,8.02488658]
[1735464467871,55.06792928,196.02,195.95,8.02488658]
[1735464468273,2.5554,195.99,195.95,8.02488658]
[1735464468469,55.06792928,196.02,195.93,1.5384]
[1735464468663,55.06792928,196.02,195.95,8.02488658]
[1735464469567,2.5556,195.97,195.95,8.02488658]
[1735464469969,2.5552,196.0,195.95,8.02488658]
[1735464470171,55.06792928,196.02,195.95,8.02488658]
[1735464471474,2.5555,195.98,195.95,8.02488658]
[1735464472373,2.5555,195.98,195.93,1.5384]
[1735464472374,2.5557,195.96,195.93,9.56328658]
[1735464474069,2.5555,195.98,195.95,8.02488658]
[1735464474977,2.5553,195.99,195.97,8.02488658]
[1735464475575,47.0430427,196.02,195.97,8.02488658]
[1735464475776,2.5552,196.0,195.97,8.02488658]
[1735464479780,2.5552,196.0,195.97,10.58048658]
[1735464479977,8.02488658,196.04,195.97,10.58048658]
[1735464480178,2.5551,196.01,195.97,10.58048658]
[1735464481479,4.6803,196.09,195.97,8.02488658]
[1735464481676,8.02488658,196.01,195.94,2.84]
[1735464481881,8.02488658,196.01,195.95,8.02488658]
[1735464482677,8.02488658,195.99,195.93,8.64166122]
[1735464483282,8.02488658,195.99,195.93,1.5384]
[1735464483480,2.5558,195.96,195.93,1.5384]
[1735464489998,2.5557,195.97,195.93,4.0944]
[1735464490401,2.5557,195.97,195.94,8.02488658]
[1735464490594,2.5557,195.96,195.94,8.02488658]
[1735464492185,2.5557,195.96,195.93,4.0944]
[1735464492387,2.5557,195.96,195.93,12.11928658]
[1735464493285,2.5555,195.98,195.94,2.5559]
[1735464493586,8.02488658,196.0,195.93,1.5384]
[1735464494787,8.02488658,195.95,195.89,7.10326122]
[1735464494985,8.02488658,195.93,195.89,7.10326122]
[1735464495386,2.84,195.96,195.89,7.10326122]
[1735464495586,8.02488658,195.93,195.88,2.5566]
[1735464496386,2.5562,195.92,195.88,2.5566]
[1735464496684,2.84,195.96,195.91,2.5564]
[1735464497084,8.02488658,195.97,195.91,2.5564]
[1735464497489,2.5558,195.95,195.91,2.5564]
[1735464498984,2.556,195.94,195.91,2.5564]
[1735464499185,2.556,195.94,195.9,10.58128658]
[1735464499886,2.556,195.94,195.9,2.5564]
[1735464500291,1.5014,195.99,195.86,28.48825965]
[1735464500292,1.5014,195.99,195.89,8.02488658]
[1735464500490,9.52628658,195.99,195.91,8.02488658]
[1735464500687,12.36628658,195.99,195.91,8.02488658]
[1735464501494,2.5556,195.97,195.93,2.5561]
[1735464503594,8.02488658,195.96,195.93,2.5561]
[1735464505207,8.02488658,195.98,195.95,2.5558]
[1735464505703,84.95834748,196.12,195.97,8.02488658]
[1735464505904,9.51598658,196.04,195.97,8.02488658]
[1735464506805,9.51598658,196.04,196.0,2.5551]
[1735464507105,2.84,196.06,195.99,8.02488658]
[1735464507306,10.86488658,196.06,196.01,2.555]
[1735464507502,10.86488658,196.06,195.99,8.02488658]
[1735464507697,1.4835,196.09,196.01,8.02488658]
[1735464508106,2.84,196.11,196.05,8.02488658]
[1735464508306,10.86488658,196.11,196.05,8.02488658]
[1735464508502,10.86488658,196.11,196.06,2.5544]
[1735464509006,2.84,196.11,196.05,8.02488658]
[1735464509205,194.0,196.29,196.08,2.5541]
[1735464509206,8.02488658,196.13,196.08,2.5541]
[1735464509398,8.02488658,196.11,196.05,8.02488658]
[1735464509707,8.02488658,196.07,196.01,2.5549]
[1735464509907,8.02488658,196.07,195.99,8.02488658]
[1735464510304,8.02488658,196.07,196.01,8.02488658]
[1735464511410,8.02488658,196.07,196.02,2.5549]
[1735464513512,2.84,196.08,196.01,8.02488658]
[1735464513711,10.57898658,196.09,196.04,2.5546]
[1735464514409,8.02488658,196.09,195.98,4.5115]
[1735464514606,2.5545,196.06,196.01,2.555]
[1735464516510,2.84,196.12,196.04,2.5547]
[1735464516511,2.5541,196.09,196.04,2.5547]
[1735464516708,8.02488658,196.08,196.0,8.02488658]
[1735464516911,8.02488658,196.08,196.02,8.02488658]
[1735464517512,2.5543,196.07,196.02,10.57968658]
[1735464517916,8.02488658,196.08,196.02,8.02488658]
[1735464518112,10.57908658,196.08,196.04,2.5547]
[1735464518313,2.84,196.1,196.02,8.02488658]
[1735464518612,10.57878658,196.1,196.05,2.5545]
[1735464519211,8.02488658,196.1,195.98,4.5115]
[1735464519416,10.57908658,196.08,196.03,2.5547]
[1735464520410,8.02488658,196.08,195.98,4.5115]
[1735464520613,2.5544,196.06,196.0,8.02488658]
[1735464521518,2.5544,196.06,196.02,2.5549]
[1735464522715,2.84,196.12,196.0,8.02488658]
[1735464522915,2.5543,196.08,196.02,8.02488658]
[1735464523806,2.5543,196.08,196.04,2.5547]
[1735464525815,8.02488658,196.09,196.02,8.02488658]
[1735464526116,8.02488658,196.14,196.06,8.02488658]
[1735464527209,49.07586023,196.16,196.11,2.5536]
[1735464527412,8.02488658,196.15,196.11,2.5536]
[1735464527608,2.84,196.2,196.1,8.02488658]
[1735464527809,8.02488658,196.18,196.1,8.02488658]
[1735464528214,3.0399,196.26,196.08,1.472]
[1735464528215,3.0399,196.26,196.15,2.5532]
[1735464528513,8.02488658,196.2,196.09,1.464]
[1735464528816,8.02488658,196.2,196.12,8.02488658]
[1735464529312,2.84,196.22,196.16,2.553]
[1735464529521,8.02488658,196.2,196.14,8.02488658]
[1735464529919,8.02488658,196.2,196.16,2.553]
[1735464530122,8.02488658,196.2,196.14,8.02488658]
[1735464530516,8.02488658,196.2,196.09,1.464]
[1735464530715,8.02488658,196.18,196.12,8.02488658]
[1735464531619,8.02488658,196.18,196.15,2.5531]
[1735464531821,8.02488658,196.2,196.12,8.02488658]
[1735464532512,8.02488658,196.2,196.16,2.553]
[1735464532718,8.02488658,196.2,196.12,8.02488658]
[1735464532918,8.02488658,196.2,196.14,2.5533]
[1735464533120,2.5528,196.19,196.12,8.02488658]
[1735464534521,2.5528,196.19,196.15,2.5532]
[1735464534922,10.57768658,196.19,196.15,2.5532]
[1735464536224,8.02488658,196.19,196.15,2.5532]
[1735464536718,8.02488658,196.19,196.12,8.02488658]
[1735464536917,8.02488658,196.19,196.14,8.02488658]
[1735464537923,8.02488658,196.19,196.18,2.5528]
[1735464539723,2.84,196.23,196.19,2.5526]
[1735464539924,8.02488658,196.2,196.19,2.5526]
[1735464541225,2.84,196.23,196.14,8.02488658]
[1735464541424,4.30141373,196.28,196.18,8.02488658]
[1735464541619,8.02488658,196.25,196.18,8.02488658]
[1735464543723,2.5519,196.26,196.18,8.02488658]
[1735464543923,8.02488658,196.25,196.18,8.02488658]
[1735464544320,8.02488658,196.25,196.2,2.5526]
[1735464544521,10.57678658,196.25,196.2,2.5526]
[1735464545222,10.57678658,196.25,196.21,2.5524]
[1735464545525,8.02488658,196.23,196.17,8.02488658]
[1735464545922,8.02488658,196.23,196.18,2.5527]
[1735464546120,2.86,196.27,196.17,8.02488658]
[1735464546329,8.02488658,196.24,196.13,2.86]
[1735464546526,8.02488658,196.24,196.16,8.02488658]
[1735464547525,2.5522,196.23,196.16,8.02488658]
[1735464548423,2.5522,196.23,196.19,2.5527]
[1735464549226,8.02488658,196.24,196.1,28.48825965]
[1735464549430,2.5527,196.19,196.12,8.02488658]
[1735464550532,2.5527,196.19,196.15,2.5532]
[1735464553634,10.57748658,196.2,196.16,2.5531]
[1735464554937,2.5526,196.2,196.16,2.5531]
[1735464555234,10.57748658,196.2,196.16,2.5531]
[1735464555624,2.86,196.22,196.14,8.02488658]
[1735464555830,8.02488658,196.21,196.18,2.5527]
[1735464556433,8.02488658,196.21,196.14,8.02488658]
[1735464556635,5.4119,196.25,196.16,8.02488658]
[1735464556838,8.02488658,196.24,196.18,8.02488658]
[1735464557335,8.02488658,196.24,196.21,2.5524]
[1735464560130,8.02488658,196.25,196.23,2.5522]
[1735464561233,2.86,196.26,196.24,2.552]
[1735464561435,2.86,196.26,196.2,8.02488658]
[1735464561837,8.02488658,196.27,196.2,8.02488658]
[1735464562032,10.57668658,196.27,196.22,2.5522]
[1735464562431,8.02488658,196.27,196.2,8.02488658]
[1735464562631,8.02488658,196.27,196.24,2.552]
[1735464568143,8.02488658,196.27,196.17,7.10326122]
[1735464568347,8.02488658,196.25,196.17,7.10326122]
[1735464568541,8.02488658,196.23,196.17,7.10326122]
[1735464568737,8.02488658,196.23,196.16,38.07144623]
[1735464569247,10.57718658,196.23,196.18,2.5528]
[1735464569846,10.57718658,196.23,196.16,9.58318658]
[1735464570146,10.57718658,196.23,196.19,2.5527]
[1735464570347,8.02488658,196.23,196.16,9.58318658]
[1735464570543,8.02488658,196.23,196.2,2.5525]
[1735464570745,2.5521,196.24,196.2,2.5525]
[1735464571242,2.5521,196.24,196.21,2.5524]
[1735464571948,10.57688658,196.25,196.21,2.5524]
[1735464572849,8.02488658,196.25,196.23,2.5522]
[1735464575260,10.57668658,196.27,196.23,2.5522]
[1735464576261,8.02488658,196.3,196.24,8.02488658]
[1735464576759,8.02488658,196.3,196.27,2.5516]
[1735464577257,8.02488658,196.3,196.24,8.02488658]
[1735464577559,8.02488658,196.31,196.29,2.5514]
[1735464578256,7.0294,196.34,196.29,2.5514]
[1735464578458,8.02488658,196.31,196.29,2.5514]
[1735464578858,2.5513,196.3,196.26,2.5518]
[1735464579162,8.02488658,196.29,196.26,2.5518]
[1735464580959,8.02488658,196.29,196.08,39.18115247]
[1735464581261,8.02488658,196.29,196.23,8.02488658]
[1735464581862,4.4786,196.34,196.23,8.02488658]